fUSD/lending_fUSD_20250905
["ID","MTS","AMOUNT","RATE_DAILY","PERIOD"]
[383621271,1757044268549,-484.25883228,0.00025479,2]
[383621272,1757044268560,-400.0,0.00025479,2]
[383621273,1757044268571,-408.19735144,0.00025479,2]
[383621274,1757044268581,-400.0,0.00025479,2]
[383621275,1757044268591,-864.88,0.00025479,2]
[383621276,1757044268601,-400.0,0.00025479,2]
[383621277,1757044268611,-406.42491936,0.00025479,2]
[383621278,1757044268622,-400.0,0.00025479,2]
[383621279,1757044268632,-400.0,0.00025479,2]
[383621280,1757044268642,-400.0,0.00025479,2]
[383621281,1757044268652,-400.0,0.00025479,2]
[383621282,1757044268663,-400.0,0.00025479,2]
[383621283,1757044268672,-400.0,0.00025479,2]
[383621284,1757044268683,-400.0,0.00025479,2]
[383621285,1757044268695,-400.0,0.00025479,2]
[383621286,1757044268706,-400.0,0.00025479,2]
[383621287,1757044268716,-400.0,0.00025479,2]
[383621288,1757044268726,-400.0,0.00025479,2]
[383621289,1757044268735,-400.0,0.00025479,2]
[383621290,1757044268744,-400.0,0.00025479,2]
[383621291,1757044268754,-213.19067554,0.00025479,2]
[383621292,1757044268763,-1151.4,0.00025479,2]
[383621293,1757044268773,-400.0,0.00025479,2]
[383621294,1757044268783,-475.87162426,0.00025479,2]
[383621295,1757044268793,-312.18411213,0.00025479,2]
[383621296,1757044268803,-714.43,0.00025479,2]
[383621297,1757044268814,-403.92,0.00025479,2]
[383621298,1757044268824,-237.7141244,0.00025479,2]
[383621299,1757044268834,-227.72704816,0.00025479,2]
[383621300,1757044268844,-400.0,0.00025479,2]
[383621301,1757044268854,-400.0,0.00025479,2]
[383621302,1757044268864,-400.0,0.00025479,2]
[383621303,1757044268874,-400.0,0.00025479,2]
[383621304,1757044268885,-400.0,0.00025479,2]
[383621305,1757044268895,-178.8141293,0.00025479,2]
[383621306,1757044268906,-400.0,0.00025479,2]
[383621307,1757044268916,-451.95471479,0.00025479,2]
[383621308,1757044268928,-423.16093457,0.00025479,2]
[383621309,1757044268938,-400.0,0.00025479,2]
[383621310,1757044268953,-279.56682691,0.00025479,2]
[383621311,1757044268964,-400.0,0.00025479,2]
[383621312,1757044268974,-553.22,0.00025479,2]
[383621313,1757044268985,-400.0,0.00025479,2]
[383621314,1757044268995,-400.0,0.00025479,2]
[383621315,1757044269007,-400.0,0.00025479,2]
[383621316,1757044269019,-466.37553382,0.00025479,2]
[383621317,1757044269029,-400.0,0.00025479,2]
[383621318,1757044269039,-400.0,0.00025479,2]
[383621319,1757044269049,-400.0,0.00025479,2]
[383621320,1757044269058,-400.0,0.00025479,2]
[383621321,1757044269068,-400.0,0.00025479,2]
[383621322,1757044269078,-400.0,0.00025479,2]
[383621323,1757044269089,-400.0,0.00025479,2]
[383621324,1757044269099,-400.0,0.00025479,2]
[383621325,1757044269109,-400.0,0.00025479,2]
[383621326,1757044269119,-400.0,0.00025479,2]
[383621327,1757044269129,-400.0,0.00025479,2]
[383621328,1757044269139,-400.0,0.00025479,2]
[383621329,1757044269149,-400.0,0.00025479,2]
[383621330,1757044269159,-510.57079445,0.00025479,2]
[383621331,1757044269168,-400.0,0.00025479,2]
[383621332,1757044269178,-400.0,0.00025479,2]
[383621333,1757044269188,-233.0893951,0.00025479,2]
[383621334,1757044269198,-659.02,0.00025479,2]
[383621335,1757044269208,-512.78767003,0.00025479,2]
[383621336,1757044269219,-469.972192,0.00025479,2]
[383621337,1757044269230,-400.0,0.00025479,2]
[383621338,1757044269240,-440.83793774,0.00025479,2]
[383621339,1757044269250,-400.0,0.00025479,2]
[383621340,1757044269260,-400.0,0.00025479,2]
[383621341,1757044269270,-400.0,0.00025479,2]
[383621342,1757044269280,-400.0,0.00025479,2]
[383621343,1757044269291,-400.0,0.00025479,2]
[383621344,1757044269300,-400.0,0.00025479,2]
[383621345,1757044269311,-400.0,0.00025479,2]
[383621346,1757044269320,-400.0,0.00025479,2]
[383621347,1757044269330,-400.0,0.00025479,2]
[383621348,1757044269341,-400.0,0.00025479,2]
[383621349,1757044269351,-400.0,0.00025479,2]
[383621350,1757044269361,-400.0,0.00025479,2]
[383621351,1757044269371,-336.94454457,0.00025479,2]
[383621352,1757044269382,-400.0,0.00025479,2]
[383621353,1757044269392,-521.06129832,0.00025479,2]
[383621354,1757044269403,-400.0,0.00025479,2]
[383621355,1757044269413,-400.0,0.00025479,2]
[383621356,1757044269425,-408.51955945,0.00025479,2]
[383621357,1757044269435,-400.0,0.00025479,2]
[383621358,1757044269445,-400.0,0.00025479,2]
[383621359,1757044269455,-183.69202935,0.00025479,2]
[383621360,1757044269465,-400.0,0.00025479,2]
[383621361,1757044269475,-400.0,0.00025479,2]
[383621362,1757044269485,-525.23725912,0.00025479,2]
[383621363,1757044269495,-400.0,0.00025479,2]
[383621364,1757044269505,-280.68399585,0.00025479,2]
[383621365,1757044269516,-575.41,0.00025479,2]
[383621366,1757044269526,-400.0,0.00025479,2]
[383621367,1757044269716,-400.0,0.00025479,2]
[383621368,1757044269726,-400.0,0.00025479,2]
[383621369,1757044269735,-400.0,0.00025479,2]
[383621370,1757044269745,-400.0,0.00025479,2]
[383621371,1757044269755,-400.0,0.00025479,2]
[383621372,1757044269765,-400.0,0.00025479,2]
[383621373,1757044269775,-400.0,0.00025479,2]
[383621374,1757044269786,-400.0,0.00025479,2]
[383621375,1757044269797,-400.0,0.00025479,2]
[383621376,1757044269807,-3097.05,0.00025479,2]
[383621377,1757044269819,-400.0,0.00025479,2]
[383621378,1757044269829,-408.56230737,0.00025479,2]
[383621379,1757044269839,-400.0,0.00025479,2]
[383621380,1757044269849,-400.0,0.00025479,2]
[383621381,1757044269860,-409.00509897,0.00025479,2]
[383621382,1757044269870,-400.0,0.00025479,2]
[383621383,1757044269879,-400.0,0.00025479,2]
[383621384,1757044269889,-400.0,0.00025479,2]
[383621385,1757044269898,-400.0,0.00025479,2]
[383621386,1757044269908,-394.84538226,0.00025479,2]
[383621387,1757044269919,-342.76,0.00025489,2]
[383621388,1757044269929,-500.0,0.00025494,2]
[383621389,1757044269939,-500.0,0.00025504,2]
[383621390,1757044269952,-500.0,0.00025504,2]
[383621391,1757044269962,-273.24,0.00025505,2]
[383621392,1757044269972,-1000.0,0.00025521,2]
[383621393,1757044269983,-1000.57824185,0.00025521,2]
[383621394,1757044269993,-651.47776122,0.00025521,2]
[383621395,1757044270003,-1000.0,0.00025521,2]
[383621396,1757044270013,-1000.0,0.00025521,2]
[383621397,1757044270025,-501.54984894,0.00025521,2]
[383621398,1757044270035,-1000.0,0.00025521,2]
[383621399,1757044270044,-1000.0,0.00025521,2]
[383621400,1757044270054,-508.97629836,0.00025521,2]
[383621401,1757044270065,-1000.0,0.00025521,2]
[383621402,1757044270075,-1000.97538847,0.00025521,2]
[383621403,1757044270084,-1000.0,0.00025521,2]
[383621404,1757044270094,-861.80096529,0.00025521,2]
[383621405,1757044270104,-449.60492833,0.00025524,2]
[383621406,1757044270114,-500.0,0.00025544,14]
[383621407,1757044270125,-150.0,0.00025544,14]
[383621408,1757044270135,-500.0,0.00025544,14]
[383621409,1757044270146,-150.0,0.00025544,14]
[383621410,1757044270156,-449.42432454,0.00025573,2]
[383621411,1757044270166,-500.0,0.00025583,2]
[383621412,1757044270176,-2000.0,0.00025632,2]
[383621413,1757044270186,-400.0,0.00025683,2]
[383621414,1757044270196,-518.98394426,0.00025683,2]
[383621415,1757044270206,-402.1580183,0.00025683,2]
[383621416,1757044270216,-400.0,0.00025683,2]
[383621417,1757044270226,-400.0,0.00025683,2]
[383621418,1757044270236,-500.0,0.00025698,2]
[383621419,1757044270246,-519.87310342,0.00025699,2]
[383621420,1757044270255,-500.0,0.00025699,2]
[383621421,1757044270266,-587.0,0.00025703,2]
[383621422,1757044270276,-400.0,0.0002572,2]
[383621423,1757044270286,-400.0,0.0002572,2]
[383621424,1757044270296,-400.0,0.0002572,2]
[383621425,1757044270306,-400.0,0.0002572,2]
[383621426,1757044270316,-425.37816115,0.0002572,2]
[383621427,1757044270327,-400.0,0.0002572,2]
[383621428,1757044270338,-400.0,0.0002572,2]
[383621429,1757044270349,-400.0,0.0002572,2]
[383621430,1757044270359,-400.0,0.0002572,2]
[383621431,1757044270369,-400.0,0.0002572,2]
[383621432,1757044270379,-400.0,0.0002572,2]
[383621433,1757044270389,-400.0,0.0002572,2]
[383621434,1757044270399,-400.0,0.0002572,2]
[383621435,1757044270409,-461.31166442,0.0002572,2]
[383621436,1757044270419,-400.0,0.0002572,2]
[383621437,1757044270428,-400.0,0.0002572,2]
[383621438,1757044270438,-400.0,0.0002572,2]
[383621439,1757044270447,-400.0,0.0002572,2]
[383621440,1757044270457,-400.0,0.0002572,2]
[383621441,1757044270466,-481.35345856,0.0002572,2]
[383621442,1757044270488,-400.0,0.0002572,2]
[383621443,1757044270498,-400.0,0.0002572,2]
[383621444,1757044270508,-452.62340513,0.0002572,2]
[383621445,1757044270519,-400.0,0.0002572,2]
[383621446,1757044270528,-400.0,0.0002572,2]
[383621447,1757044270538,-400.0,0.0002572,2]
[383621448,1757044270549,-430.45978655,0.0002572,2]
[383621449,1757044270559,-480.97532212,0.0002572,2]
[383621450,1757044270569,-449.8652898,0.0002572,2]
[383621451,1757044270579,-400.0,0.0002572,2]
[383621452,1757044270589,-400.0,0.0002572,2]
[383621453,1757044270599,-400.0,0.0002572,2]
[383621454,1757044270608,-428.76066213,0.0002572,2]
[383621455,1757044270619,-400.0,0.0002572,2]
[383621456,1757044270629,-400.0,0.0002572,2]
[383621457,1757044270639,-164.21278166,0.0002572,2]
[383621458,1757044270649,-400.0,0.0002572,2]
[383621459,1757044270659,-442.25756178,0.0002572,2]
[383621460,1757044270669,-432.97291266,0.0002572,2]
[383621461,1757044270678,-400.0,0.0002572,2]
[383621462,1757044270689,-433.1859065,0.0002572,2]
[383621463,1757044270699,-400.0,0.0002572,2]
[383621464,1757044270709,-400.0,0.0002572,2]
[383621465,1757044270719,-400.0,0.0002572,2]
[383621466,1757044270729,-400.0,0.0002572,2]
[383621467,1757044270739,-400.0,0.0002572,2]
[383621468,1757044270749,-400.0,0.0002572,2]
[383621469,1757044270759,-400.0,0.0002572,2]
[383621470,1757044270769,-400.0,0.0002572,2]
[383621471,1757044270778,-1020.86143044,0.0002572,2]
[383621472,1757044270788,-268.01698253,0.0002572,2]
[383621473,1757044270798,-400.0,0.0002572,2]
[383621474,1757044270808,-400.0,0.0002572,2]
[383621475,1757044270819,-400.0,0.0002572,2]
[383621476,1757044270829,-400.0,0.0002572,2]
[383621477,1757044270838,-400.0,0.0002572,2]
[383621478,1757044270848,-400.0,0.0002572,2]
[383621479,1757044270857,-400.0,0.0002572,2]
[383621480,1757044270867,-415.5061505,0.0002572,2]
[383621481,1757044270877,-400.0,0.0002572,2]
[383621482,1757044270886,-400.0,0.0002572,2]
[383621483,1757044270895,-339.51565273,0.0002572,2]
[383621484,1757044270905,-400.0,0.0002572,2]
[383621485,1757044270915,-400.0,0.0002572,2]
[383621486,1757044270925,-400.0,0.0002572,2]
[383621487,1757044270936,-400.0,0.0002572,2]
[383621488,1757044270949,-400.0,0.0002572,2]
[383621489,1757044270958,-160.15817408,0.0002572,2]
[383621490,1757044270971,-400.0,0.0002572,2]
[383621491,1757044270983,-400.0,0.0002572,2]
[383621492,1757044270992,-400.0,0.0002572,2]
[383621493,1757044271002,-216.56024469,0.0002572,2]
[383621494,1757044271012,-400.0,0.0002572,2]
[383621495,1757044271024,-400.0,0.0002572,2]
[383621496,1757044271034,-400.0,0.0002572,2]
[383621497,1757044271045,-400.0,0.0002572,2]
[383621498,1757044271055,-400.0,0.0002572,2]
[383621499,1757044271065,-400.0,0.0002572,2]
[383621500,1757044271075,-400.0,0.0002572,2]
[383621501,1757044271086,-400.0,0.0002572,2]
[383621502,1757044271096,-400.0,0.0002572,2]
[383621503,1757044271107,-400.0,0.0002572,2]
[383621504,1757044271117,-362.57851069,0.0002572,2]
[383621505,1757044271127,-400.0,0.0002572,2]
[383621506,1757044271137,-400.0,0.0002572,2]
[383621507,1757044271147,-400.0,0.0002572,2]
[383621508,1757044271157,-400.0,0.0002572,2]
[383621509,1757044271168,-1135.87,0.0002572,2]
[383621510,1757044271179,-400.0,0.0002572,2]
[383621511,1757044271188,-400.0,0.0002572,2]
[383621512,1757044271199,-400.0,0.0002572,2]
[383621513,1757044271209,-400.0,0.0002572,2]
[383621514,1757044271219,-400.0,0.0002572,2]
[383621515,1757044271229,-533.0430759,0.0002572,2]
[383621516,1757044271239,-400.0,0.0002572,2]
[383621517,1757044271249,-400.0,0.0002572,2]
[383621518,1757044271258,-400.0,0.0002572,2]
[383621519,1757044271267,-400.0,0.0002572,2]
[383621520,1757044271277,-400.0,0.0002572,2]
[383621521,1757044271287,-400.0,0.0002572,2]
[383621522,1757044271297,-400.0,0.0002572,2]
[383621523,1757044271307,-400.0,0.0002572,2]
[383621524,1757044271319,-400.0,0.0002572,2]
[383621525,1757044271329,-400.0,0.0002572,2]
[383621526,1757044271342,-457.18139113,0.0002572,2]
[383621527,1757044271351,-400.0,0.0002572,2]
[383621528,1757044271361,-400.0,0.0002572,2]
[383621529,1757044271371,-316.39546976,0.0002572,2]
[383621530,1757044271382,-400.0,0.0002572,2]
[383621531,1757044271392,-1013.01,0.0002572,2]
[383621532,1757044271402,-400.0,0.0002572,2]
[383621533,1757044271412,-400.0,0.0002572,2]
[383621534,1757044271421,-400.0,0.0002572,2]
[383621535,1757044271431,-400.0,0.0002572,2]
[383621536,1757044271442,-400.0,0.0002572,2]
[383621537,1757044271452,-400.0,0.0002572,2]
[383621538,1757044271462,-400.0,0.0002572,2]
[383621539,1757044271471,-400.0,0.0002572,2]
[383621540,1757044271481,-400.0,0.0002572,2]
[383621541,1757044271491,-256.85428882,0.0002572,2]
[383621542,1757044271500,-400.0,0.0002572,2]
[383621543,1757044271510,-221.92792243,0.0002572,2]
[383621544,1757044271521,-400.0,0.0002572,2]
[383621545,1757044271531,-400.0,0.0002572,2]
[383621546,1757044271541,-412.83,0.0002572,2]
[383621547,1757044271559,-400.0,0.0002572,2]
[383621548,1757044271573,-400.0,0.0002572,2]
[383621549,1757044271583,-400.0,0.0002572,2]
[383621550,1757044271593,-400.0,0.0002572,2]
[383621551,1757044271603,-400.0,0.0002572,2]
[383621552,1757044271614,-400.0,0.0002572,2]
[383621553,1757044271623,-400.0,0.0002572,2]
[383621554,1757044271633,-173.43608525,0.0002572,2]
[383621555,1757044271644,-400.0,0.0002572,2]
[383621556,1757044271654,-2614.78,0.0002572,2]
[383621557,1757044271664,-400.0,0.0002572,2]
[383621558,1757044271674,-400.0,0.0002572,2]
[383621559,1757044271683,-400.0,0.0002572,2]
[383621560,1757044271693,-400.0,0.00025752,2]
[383621561,1757044271703,-231.45414307,0.00025752,2]
[383621562,1757044271713,-400.0,0.00025752,2]
[383621563,1757044271723,-400.0,0.00025752,2]
[383621564,1757044271733,-545.02649487,0.00025752,2]
[383621565,1757044271743,-400.0,0.00025752,2]
[383621566,1757044271753,-500.0,0.00025752,2]
[383621567,1757044271763,-400.0,0.00025753,2]
[383621568,1757044271773,-400.0,0.00025753,2]
[383621569,1757044271783,-400.0,0.00025753,2]
[383621570,1757044271792,-400.0,0.00025753,2]
[383621571,1757044271802,-400.0,0.00025753,2]
[383621572,1757044271813,-400.0,0.00025753,2]
[383621573,1757044271823,-408.47081292,0.00025753,2]
[383621574,1757044271833,-408.60988341,0.00025753,2]
[383621575,1757044271842,-400.0,0.00025753,2]
[383621576,1757044271851,-400.0,0.00025753,2]
[383621577,1757044271861,-400.0,0.00025753,2]
[383621578,1757044271870,-260.1228869,0.00025753,2]
[383621579,1757044271880,-400.0,0.00025753,2]
[383621580,1757044271889,-439.330001,0.00025753,2]
[383621581,1757044271899,-191.75865916,0.00025753,2]
[383621582,1757044271909,-400.0,0.00025753,2]
[383621583,1757044271919,-400.0,0.00025753,2]
[383621584,1757044271928,-405.53264751,0.00025753,2]
[383621585,1757044271937,-419.8050304,0.00025753,2]
[383621586,1757044271952,-409.55255148,0.00025753,2]
[383621587,1757044271961,-475.67799518,0.00025753,2]
[383621588,1757044271971,-400.0,0.00025753,2]
[383621589,1757044271980,-400.0,0.00025753,2]
[383621590,1757044271991,-400.0,0.00025753,2]
[383621591,1757044272000,-400.0,0.00025753,2]
[383621592,1757044272010,-400.0,0.00025753,2]
[383621593,1757044272020,-400.0,0.00025753,2]
[383621594,1757044272031,-400.0,0.00025753,2]
[383621595,1757044272041,-400.0,0.00025753,2]
[383621596,1757044272050,-400.0,0.00025753,2]
[383621597,1757044272060,-352.44045863,0.00025753,2]
[383621598,1757044272445,-47.55954137,0.00025753,2]
[383621599,1757044272455,-475.2336907,0.00025753,2]
[383621600,1757044272465,-185.57907122,0.00025753,2]
[383621601,1757044272474,-409.94299603,0.00025753,2]
[383621602,1757044272484,-328.3501744,0.00025753,2]
[383621603,1757044272712,-203.35581333,0.00024557,2]
[383621604,1757044272723,-400.0,0.00024657,2]
[383621605,1757044272733,-128.01225747,0.00024657,2]
[383621606,1757044272745,-271.98774253,0.00024657,2]
[383621607,1757044272755,-405.83616331,0.00024931,2]
[383621608,1757044272764,-202.75046045,0.00024931,2]
[383621609,1757044272776,-197.24953955,0.00024931,2]
[383621610,1757044272786,-419.86870213,0.00025172,2]
[383621611,1757044272796,-393.28116695,0.00025479,2]
[383621612,1757044272808,-66.15358171,0.00025479,2]
[383621613,1757044272818,-77.16956308,0.00025753,2]
[383621614,1757044272827,-198.17513662,0.00025753,2]
[383621615,1757044272839,-201.82486338,0.00025753,2]
[383621616,1757044272848,-55.40017941,0.00025753,2]
[383621622,1757044433358,5995.60143915,0.0003013,120]
[383621645,1757044508363,503.0,0.0003,120]
[383621653,1757044770336,159.78,0.00011301,2]
[383621654,1757044770758,159.78,0.00012432,2]
[383621655,1757044770954,159.78,0.00013562,2]
[383621656,1757044771143,159.78,0.00014692,2]
[383621657,1757044771350,159.78,0.00015822,2]
[383621658,1757044771566,159.78,0.00016952,2]
[383621659,1757044771811,159.78,0.00018082,2]
[383621660,1757044772016,159.78,0.00019212,2]
[383621670,1757045258718,157.13,0.00013699,2]
[383621679,1757045432149,-176.35,0.00020332,2]
[383621680,1757045432163,-219.18273179,0.00020341,2]
[383621681,1757045432173,-300.0,0.00020341,2]
[383621682,1757045432182,-508.92086521,0.00020341,2]
[383621683,1757045432194,-691.07913479,0.00020341,2]
[383621684,1757045432203,-1018.91412659,0.00020342,2]
[383621685,1757045432213,-613.86811497,0.00020342,2]
[383621686,1757045432348,-1018.91412659,0.00020342,2]
[383621687,1757045432358,-1018.91412659,0.00020342,2]
[383621688,1757045432369,-1018.91412659,0.00020342,2]
[383621689,1757045432378,-1018.91412659,0.00020342,2]
[383621690,1757045432388,-1018.91412659,0.00020342,2]
[383621691,1757045432398,-1018.91412659,0.00020342,2]
[383621692,1757045432407,-1018.91412659,0.00020342,2]
[383621693,1757045432417,-1018.91412659,0.00020342,2]
[383621694,1757045432427,-1018.91412659,0.00020342,2]
[383621695,1757045432436,-1018.91412659,0.00020342,2]
[383621696,1757045432446,-1018.91412659,0.00020342,2]
[383621697,1757045432456,-1018.91412659,0.00020342,2]
[383621698,1757045432466,-1018.91412659,0.00020342,2]
[383621699,1757045432476,-1018.91412659,0.00020342,2]
[383621700,1757045432485,-1018.91412659,0.00020342,2]
[383621701,1757045432495,-1018.91412659,0.00020342,2]
[383621702,1757045432504,-1018.91412659,0.00020342,2]
[383621703,1757045432513,-1018.91412659,0.00020342,2]
[383621704,1757045432523,-1018.91412659,0.00020342,2]
[383621705,1757045432532,-1018.91412659,0.00020342,2]
[383621706,1757045432543,-1018.91412659,0.00020342,2]
[383621707,1757045432554,-1018.91412659,0.00020342,2]
[383621708,1757045432563,-1018.91412659,0.00020342,2]
[383621709,1757045432573,-1018.91412659,0.00020342,2]
[383621711,1757045432583,-1018.91412659,0.00020342,2]
[383621713,1757045432592,-1018.91412659,0.00020342,2]
[383621714,1757045432603,-1018.91412659,0.00020342,2]
[383621715,1757045432612,-1018.91412659,0.00020342,2]
[383621716,1757045432622,-1018.91412659,0.00020342,2]
[383621718,1757045432631,-1018.91412659,0.00020342,2]
[383621720,1757045432641,-1018.91412659,0.00020342,2]
[383621722,1757045432650,-1018.91412659,0.00020342,2]
[383621724,1757045432660,-1018.91412659,0.00020342,2]
[383621726,1757045432669,-1018.91412659,0.00020342,2]
[383621728,1757045432680,-1018.91412659,0.00020342,2]
[383621730,1757045432689,-1018.91412659,0.00020342,2]
[383621732,1757045432699,-1018.91412659,0.00020342,2]
[383621734,1757045432708,-1018.91412659,0.00020342,2]
[383621737,1757045432718,-1018.91412659,0.00020342,2]
[383621739,1757045432727,-1018.91412659,0.00020342,2]
[383621740,1757045432737,-1288.69826318,0.00020342,2]
[383621741,1757045432747,-1288.69826318,0.00020342,2]
[383621742,1757045432756,-1288.69826318,0.00020342,2]
[383621743,1757045432765,-1288.69826318,0.00020342,2]
[383621744,1757045432775,-1288.69826318,0.00020342,2]
[383621745,1757045432784,-1288.69826318,0.00020342,2]
[383621746,1757045432794,-1288.69826318,0.00020342,2]
[383621747,1757045432803,-1288.69826318,0.00020342,2]
[383621748,1757045432812,-1288.69826318,0.00020342,2]
[383621749,1757045432822,-1288.69826318,0.00020342,2]
[383621750,1757045432831,-1288.69826318,0.00020342,2]
[383621751,1757045432841,-1288.69826318,0.00020342,2]
[383621753,1757045432850,-1288.69826318,0.00020342,2]
[383621755,1757045432859,-1288.69826318,0.00020342,2]
[383621757,1757045432868,-1288.69826318,0.00020342,2]
[383621759,1757045432877,-1288.69826318,0.00020342,2]
[383621761,1757045432887,-1288.69826318,0.00020342,2]
[383621763,1757045432896,-1288.69826318,0.00020342,2]
[383621765,1757045432906,-1288.69826318,0.00020342,2]
[383621767,1757045432916,-1288.69826318,0.00020342,2]
[383621769,1757045432926,-1288.69826318,0.00020342,2]
[383621771,1757045432935,-1288.69826318,0.00020342,2]
[383621773,1757045432944,-1288.69826318,0.00020342,2]
[383621775,1757045432954,-1288.69826318,0.00020342,2]
[383621777,1757045432963,-1288.69826318,0.00020342,2]
[383621779,1757045432973,-1288.69826318,0.00020342,2]
[383621781,1757045432983,-1288.69826318,0.00020342,2]
[383621784,1757045432992,-1288.69826318,0.00020342,2]
[383621785,1757045433002,-1288.69826318,0.00020342,2]
[383621787,1757045433011,-1288.69826318,0.00020342,2]
[383621789,1757045433020,-1288.69826318,0.00020342,2]
[383621791,1757045433029,-1288.69826318,0.00020342,2]
[383621793,1757045433039,-1288.69826318,0.00020342,2]
[383621795,1757045433049,-1288.69826318,0.00020342,2]
[383621796,1757045433059,-1288.69826318,0.00020342,2]
[383621797,1757045433068,-1288.69826318,0.00020342,2]
[383621798,1757045433077,-1288.69826318,0.00020342,2]
[383621799,1757045433087,-1288.69826315,0.00020342,2]
[383621800,1757045433096,-25686.20265331,0.00020343,2]
[383621802,1757045433252,-1020.92756705,0.00020343,2]
[383621803,1757045433340,-111171.6299631,0.00020343,2]
[383621804,1757045433350,-250.0,0.00020343,2]
[383621805,1757045433359,-159.78,0.00020343,2]
[383621806,1757045433369,-250.0,0.00020843,2]
[383621807,1757045433379,-160.33,0.00021,2]
[383621808,1757045433389,-500.0,0.0002106,2]
[383621809,1757045433399,-159.78,0.00021473,2]
[383621810,1757045433408,-302.74843935,0.000215,2]
[383621811,1757045433418,-301.33203014,0.00021608,2]
[383621812,1757045433428,-420.0,0.00022141,2]
[383621813,1757045433437,-1151.0,0.00022247,2]
[383621814,1757045433447,-195.0,0.00022377,2]
[383621815,1757045433456,-250.0,0.00022377,2]
[383621816,1757045433466,-300.0,0.00022377,2]
[383621817,1757045433476,-159.78,0.00022603,2]
[383621818,1757045433485,-588.68,0.00022603,2]
[383621819,1757045433495,-150.0,0.0002266,4]
[383621820,1757045433505,-1743.73150684,0.00022802,2]
[383621821,1757045433514,-678.02,0.00022903,2]
[383621822,1757045433524,-1000.0,0.00022913,2]
[383621823,1757045433534,-160.0,0.00022988,7]
[383621824,1757045433546,-467.93,0.00023015,2]
[383621825,1757045433556,-305.17,0.0002307,2]
[383621826,1757045433565,-172.62,0.00023719,2]
[383621827,1757045433575,-163.95,0.00023726,2]
[383621828,1757045433585,-485.0,0.00023768,2]
[383621829,1757045433594,-6182.761,0.00023815,2]
[383621830,1757045433605,-4163.0,0.00023815,2]
[383621831,1757045433616,-726.49,0.00023815,2]
[383621832,1757045433627,-21210.207,0.00023815,2]
[383621833,1757045433637,-257.91778498,0.00023952,2]
[383621834,1757045433647,-157.13,0.00023973,2]
[383621835,1757045433657,-587.0,0.00024101,2]
[383621836,1757045433666,-168.0,0.00024126,2]
[383621837,1757045433676,-168.0,0.00024306,2]
[383621838,1757045433686,-330.69,0.0002455,2]
[383621839,1757045433695,-556.7,0.00024557,2]
[383621840,1757045433705,-557.30571375,0.00024557,4]
[383621841,1757045433715,-183.02023197,0.00024557,2]
[383621842,1757045433726,-379.49700685,0.00024557,2]
[383621843,1757045433735,-281.0,0.000246,2]
[383621844,1757045433745,-163.95,0.00024616,2]
[383621845,1757045433756,-168.0,0.00024621,2]
[383621846,1757045433765,-372.34,0.00024623,2]
[383621847,1757045433775,-235.71,0.00024631,2]
[383621848,1757045433789,-500.0,0.00024657,2]
[383621849,1757045433798,-408.53147969,0.00024657,2]
[383621850,1757045433808,-400.0,0.00024657,2]
[383621851,1757045433818,-400.0,0.00024657,2]
[383621852,1757045433828,-401.97310307,0.00024657,2]
[383621853,1757045433838,-400.0,0.00024657,2]
[383621854,1757045433849,-400.0,0.00024657,2]
[383621855,1757045433859,-405.1351198,0.00024657,2]
[383621856,1757045433868,-400.0,0.00024657,2]
[383621857,1757045433878,-171.09778344,0.00024657,2]
[383621858,1757045433888,-400.0,0.00024657,2]